[Event "Late-Titled-Tuesday-Blitz-October-10-2023"]
[Site "Chess.com"]
[Date "2023.10.10"]
[Round "9"]
[White "subham777"]
[Black "micke12a"]
[Result "1-0"]
[WhiteElo "2530"]
[BlackElo "2366"]
[TimeControl "180+1"]
[EndTime "15:40:23 PDT"]
[Termination "subham777 won by checkmate"]

1. e4 {[%clk 0:03:00.9]} 1... c5 {[%clk 0:02:59.8]} 2. Nf3 {[%clk 0:03:00.9]}
2... d6 {[%clk 0:03:00.2]} 3. d4 {[%clk 0:03:01.3]} 3... cxd4 {[%clk 0:03:00.9]}
4. Qxd4 {[%clk 0:03:02]} 4... Nc6 {[%clk 0:03:00.6]} 5. Bb5 {[%clk 0:03:01.8]}
5... Bd7 {[%clk 0:03:01.1]} 6. Bxc6 {[%clk 0:03:02.2]} 6... Bxc6 {[%clk
0:03:02]} 7. c4 {[%clk 0:03:02.4]} 7... Nf6 {[%clk 0:03:00.1]} 8. Nc3 {[%clk
0:03:02.7]} 8... e6 {[%clk 0:02:59.3]} 9. Bg5 {[%clk 0:03:02.6]} 9... Be7 {[%clk
0:03:00]} 10. O-O {[%clk 0:03:02.3]} 10... O-O {[%clk 0:03:00.5]} 11. Rfd1
{[%clk 0:03:02.2]} 11... a6 {[%clk 0:02:57.4]} 12. Rac1 {[%clk 0:03:02.2]} 12...
Qa5 {[%clk 0:02:56.5]} 13. Bh4 {[%clk 0:02:51.8]} 13... Rfd8 {[%clk 0:02:55.1]}
14. b3 {[%clk 0:02:46.8]} 14... b5 {[%clk 0:02:53.3]} 15. cxb5 {[%clk
0:02:35.8]} 15... axb5 {[%clk 0:02:52.2]} 16. Qd3 {[%clk 0:02:36.2]} 16... b4
{[%clk 0:02:50]} 17. Nd4 {[%clk 0:02:28.1]} 17... Bb7 {[%clk 0:02:43.4]} 18.
Bxf6 {[%clk 0:02:20.5]} 18... Bxf6 {[%clk 0:02:41.7]} 19. Na4 {[%clk 0:02:20.2]}
19... Rac8 {[%clk 0:02:36]} 20. Nf3 {[%clk 0:02:11.9]} 20... Bc6 {[%clk
0:02:30.9]} 21. Qc2 {[%clk 0:01:57.3]} 21... h6 {[%clk 0:02:22.2]} 22. Nd4
{[%clk 0:01:46.8]} 22... Bxa4 {[%clk 0:02:19.6]} 23. Qxc8 {[%clk 0:01:46.6]}
23... Rxc8 {[%clk 0:02:19.3]} 24. Rxc8+ {[%clk 0:01:46.4]} 24... Kh7 {[%clk
0:02:19.9]} 25. bxa4 {[%clk 0:01:45.8]} 25... Qxa4 {[%clk 0:02:19.6]} 26. Rcc1
{[%clk 0:01:20]} 26... Qxa2 {[%clk 0:02:16.8]} 27. Ra1 {[%clk 0:01:18.6]} 27...
Qb2 {[%clk 0:01:54.5]} 28. Rab1 {[%clk 0:01:14.9]} 28... Qc3 {[%clk 0:01:29.5]}
29. Nb5 {[%clk 0:01:11.9]} 29... Qc6 {[%clk 0:01:28.6]} 30. Nxd6 {[%clk
0:01:09.3]} 30... Qc2 {[%clk 0:01:09.6]} 31. Rdc1 {[%clk 0:00:56.6]} 31... Qd2
{[%clk 0:00:54]} 32. Nc4 {[%clk 0:00:51.7]} 32... Qd4 {[%clk 0:00:47.9]} 33.
Rxb4 {[%clk 0:00:40.7]} 33... Qxe4 {[%clk 0:00:42.2]} 34. Rbb1 {[%clk
0:00:37.7]} 34... Bd4 {[%clk 0:00:40.9]} 35. Rf1 {[%clk 0:00:32.9]} 35... Qc2
{[%clk 0:00:39.2]} 36. Ne3 {[%clk 0:00:29]} 36... Qa2 {[%clk 0:00:28.1]} 37.
Rbe1 {[%clk 0:00:25.7]} 37... Kg6 {[%clk 0:00:27.1]} 38. g3 {[%clk 0:00:24.1]}
38... f5 {[%clk 0:00:25.7]} 39. Kg2 {[%clk 0:00:23.7]} 39... e5 {[%clk 0:00:26]}
40. h4 {[%clk 0:00:16.4]} 40... Qa8+ {[%clk 0:00:26.4]} 41. Kh2 {[%clk
0:00:14.2]} 41... Qf3 {[%clk 0:00:25.9]} 42. Nd1 {[%clk 0:00:03.6]} 42... f4
{[%clk 0:00:24.5]} 43. gxf4 {[%clk 0:00:03.2]} 43... Qxf4+ {[%clk 0:00:24.2]}
44. Kg2 {[%clk 0:00:03.6]} 44... Qg4+ {[%clk 0:00:22.9]} 45. Kh2 {[%clk
0:00:03.6]} 45... Qxh4+ {[%clk 0:00:23.3]} 46. Kg2 {[%clk 0:00:04.3]} 46... Qg4+
{[%clk 0:00:23.2]} 47. Kh2 {[%clk 0:00:04.5]} 47... e4 {[%clk 0:00:22.5]} 48.
Rg1 {[%clk 0:00:03.8]} 48... Be5+ {[%clk 0:00:21.8]} 49. Kh1 {[%clk 0:00:04.3]}
49... h5 {[%clk 0:00:19]} 50. Rxg4+ {[%clk 0:00:04.6]} 50... hxg4 {[%clk
0:00:19.9]} 51. Rxe4 {[%clk 0:00:05.1]} 51... Kf5 {[%clk 0:00:20.8]} 52. Rc4
{[%clk 0:00:05]} 52... g3 {[%clk 0:00:19.8]} 53. fxg3 {[%clk 0:00:03.8]} 53...
Bxg3 {[%clk 0:00:20.1]} 54. Kg2 {[%clk 0:00:04.4]} 54... Be5 {[%clk 0:00:20]}
55. Kf3 {[%clk 0:00:04.7]} 55... g6 {[%clk 0:00:19.4]} 56. Ne3+ {[%clk
0:00:05.4]} 56... Ke6 {[%clk 0:00:20]} 57. Ke4 {[%clk 0:00:05.7]} 57... Bf6
{[%clk 0:00:20]} 58. Rc6+ {[%clk 0:00:06.1]} 58... Kf7 {[%clk 0:00:20.2]} 59.
Nd5 {[%clk 0:00:06]} 59... Bh4 {[%clk 0:00:20.5]} 60. Kf4 {[%clk 0:00:03.7]}
60... Be1 {[%clk 0:00:19.5]} 61. Ke5 {[%clk 0:00:03.5]} 61... Bg3+ {[%clk
0:00:18.3]} 62. Ke4 {[%clk 0:00:04.2]} 62... Kg7 {[%clk 0:00:18.7]} 63. Re6
{[%clk 0:00:03.6]} 63... Bb8 {[%clk 0:00:18.3]} 64. Re8 {[%clk 0:00:03.7]} 64...
Kh6 {[%clk 0:00:18.9]} 65. Rxb8 {[%clk 0:00:03.9]} 65... g5 {[%clk 0:00:19.6]}
66. Rf8 {[%clk 0:00:03.9]} 66... Kh5 {[%clk 0:00:20.5]} 67. Rf1 {[%clk
0:00:04.5]} 67... g4 {[%clk 0:00:21]} 68. Kf4 {[%clk 0:00:05]} 68... Kg6 {[%clk
0:00:21.1]} 69. Kxg4 {[%clk 0:00:04.8]} 69... Kg7 {[%clk 0:00:22]} 70. Kf5
{[%clk 0:00:05.2]} 70... Kh6 {[%clk 0:00:22.3]} 71. Rg1 {[%clk 0:00:05.3]} 71...
Kh5 {[%clk 0:00:23.2]} 72. Rh1# {[%clk 0:00:05]} 1-0

[Event "Late-Titled-Tuesday-Blitz-October-10-2023"]
[Site "Chess.com"]
[Date "2023.10.10"]
[Round "9"]
[White "maximnovik"]
[Black "djano"]
[Result "1-0"]
[WhiteElo "2496"]
[BlackElo "2665"]
[TimeControl "180+1"]
[EndTime "15:40:26 PDT"]
[Termination "maximnovik won by checkmate"]

1. e4 {[%clk 0:03:00]} 1... c5 {[%clk 0:02:59.4]} 2. Nf3 {[%clk 0:02:59.8]} 2...
Nc6 {[%clk 0:02:59.4]} 3. Bb5 {[%clk 0:02:59.4]} 3... e5 {[%clk 0:02:59.1]} 4.
O-O {[%clk 0:02:54.9]} 4... Nge7 {[%clk 0:02:58.6]} 5. c3 {[%clk 0:02:53.8]}
5... g6 {[%clk 0:02:58.8]} 6. d4 {[%clk 0:02:53]} 6... cxd4 {[%clk 0:02:59.7]}
7. cxd4 {[%clk 0:02:52.6]} 7... exd4 {[%clk 0:03:00.6]} 8. e5 {[%clk 0:02:42.3]}
8... Bg7 {[%clk 0:02:55.6]} 9. Bf4 {[%clk 0:02:40.3]} 9... O-O {[%clk
0:02:47.3]} 10. Nbd2 {[%clk 0:02:39.9]} 10... a6 {[%clk 0:02:42.8]} 11. Bd3
{[%clk 0:02:27.9]} 11... f6 {[%clk 0:02:09]} 12. exf6 {[%clk 0:02:20.1]} 12...
Bxf6 {[%clk 0:02:09.2]} 13. Bh6 {[%clk 0:02:12]} 13... Bg7 {[%clk 0:01:54.7]}
14. Bxg7 {[%clk 0:02:11.6]} 14... Kxg7 {[%clk 0:01:55.6]} 15. Nb3 {[%clk
0:02:10.5]} 15... Qb6 {[%clk 0:01:47]} 16. Re1 {[%clk 0:02:03.4]} 16... d6
{[%clk 0:01:06.2]} 17. Nfxd4 {[%clk 0:01:57.2]} 17... Bd7 {[%clk 0:01:04.1]} 18.
Bf1 {[%clk 0:01:49.6]} 18... Rae8 {[%clk 0:00:57.3]} 19. Qd2 {[%clk 0:01:49.5]}
19... Nf5 {[%clk 0:00:46]} 20. Nxf5+ {[%clk 0:01:31.9]} 20... Rxf5 {[%clk
0:00:46.9]} 21. Rxe8 {[%clk 0:01:13]} 21... Bxe8 {[%clk 0:00:46.3]} 22. Re1
{[%clk 0:01:12.8]} 22... Bf7 {[%clk 0:00:43.6]} 23. Re3 {[%clk 0:01:10.6]} 23...
Re5 {[%clk 0:00:38.5]} 24. Rd3 {[%clk 0:01:02.4]} 24... d5 {[%clk 0:00:28.8]}
25. Nd4 {[%clk 0:01:02.4]} 25... Qb4 {[%clk 0:00:18.6]} 26. a3 {[%clk
0:00:31.2]} 26... Qxd2 {[%clk 0:00:16.4]} 27. Rxd2 {[%clk 0:00:31.6]} 27... Re1
{[%clk 0:00:16.8]} 28. f3 {[%clk 0:00:31]} 28... Rb1 {[%clk 0:00:14.4]} 29. Ne2
{[%clk 0:00:21]} 29... d4 {[%clk 0:00:14.8]} 30. Kf2 {[%clk 0:00:20]} 30... Bc4
{[%clk 0:00:14.9]} 31. Ng3 {[%clk 0:00:20]} 31... d3 {[%clk 0:00:12.3]} 32. f4
{[%clk 0:00:18.8]} 32... Nd4 {[%clk 0:00:10.1]} 33. Bxd3 {[%clk 0:00:17.2]}
33... Bxd3 {[%clk 0:00:09.1]} 34. Rxd3 {[%clk 0:00:17.5]} 34... Rxb2+ {[%clk
0:00:09.8]} 35. Ke3 {[%clk 0:00:17.2]} 35... Nc2+ {[%clk 0:00:09.5]} 36. Ke4
{[%clk 0:00:17.5]} 36... Ne1 {[%clk 0:00:06.7]} 37. Rd7+ {[%clk 0:00:16.7]}
37... Kg8 {[%clk 0:00:06.8]} 38. Ke5 {[%clk 0:00:14.3]} 38... Nxg2 {[%clk
0:00:04.9]} 39. Ne4 {[%clk 0:00:14.2]} 39... Rb5+ {[%clk 0:00:04.3]} 40. Kf6
{[%clk 0:00:13.5]} 40... Rf5+ {[%clk 0:00:04.3]} 41. Ke6 {[%clk 0:00:12.5]}
41... Nxf4+ {[%clk 0:00:05.2]} 42. Ke7 {[%clk 0:00:11.1]} 42... Rf7+ {[%clk
0:00:04.8]} 43. Kd8 {[%clk 0:00:07.4]} 43... Rxd7+ {[%clk 0:00:03.9]} 44. Kxd7
{[%clk 0:00:07.8]} 44... Kg7 {[%clk 0:00:04]} 45. Kc7 {[%clk 0:00:07.5]} 45...
b5 {[%clk 0:00:03.2]} 46. Kb6 {[%clk 0:00:07.8]} 46... Nd3 {[%clk 0:00:02.8]}
47. Kxa6 {[%clk 0:00:07.4]} 47... b4 {[%clk 0:00:03.5]} 48. a4 {[%clk 0:00:07]}
48... b3 {[%clk 0:00:03.8]} 49. Nc3 {[%clk 0:00:06.9]} 49... b2 {[%clk 0:00:04]}
50. Kb5 {[%clk 0:00:06.9]} 50... Ne5 {[%clk 0:00:03.4]} 51. a5 {[%clk 0:00:07]}
51... Nf3 {[%clk 0:00:03.8]} 52. a6 {[%clk 0:00:07]} 52... Nd4+ {[%clk 0:00:04]}
53. Kb6 {[%clk 0:00:06.8]} 53... Ne2 {[%clk 0:00:04]} 54. Nb1 {[%clk 0:00:06.4]}
54... Nf4 {[%clk 0:00:03.6]} 55. a7 {[%clk 0:00:06.6]} 55... g5 {[%clk
0:00:04.5]} 56. a8=Q {[%clk 0:00:05.4]} 56... Kg6 {[%clk 0:00:05.4]} 57. Qe4+
{[%clk 0:00:05.2]} 57... Kh5 {[%clk 0:00:05.8]} 58. Qf3+ {[%clk 0:00:05.3]}
58... g4 {[%clk 0:00:05.6]} 59. Qf2 {[%clk 0:00:06.1]} 59... Kg5 {[%clk
0:00:06.5]} 60. Qxb2 {[%clk 0:00:06.1]} 60... h5 {[%clk 0:00:06.7]} 61. Qe5+
{[%clk 0:00:05.9]} 61... Kh4 {[%clk 0:00:06.7]} 62. Qxf4 {[%clk 0:00:06.8]}
62... Kh3 {[%clk 0:00:06.2]} 63. Qg3# {[%clk 0:00:07.7]} 1-0

[Event "Late-Titled-Tuesday-Blitz-October-10-2023"]
[Site "Chess.com"]
[Date "2023.10.10"]
[Round "9"]
[White "Bauman_Guy"]
[Black "filipluczak05"]
[Result "1/2-1/2"]
[WhiteElo "2851"]
[BlackElo "2632"]
[TimeControl "180+1"]
[EndTime "15:40:32 PDT"]
[Termination "Game drawn by repetition"]

1. e4 {[%clk 0:03:00.9]} 1... g6 {[%clk 0:03:00.9]} 2. d4 {[%clk 0:03:00.5]}
2... Bg7 {[%clk 0:03:00.8]} 3. Nc3 {[%clk 0:03:01.4]} 3... c5 {[%clk 0:03:00.8]}
4. dxc5 {[%clk 0:03:00.8]} 4... Bxc3+ {[%clk 0:03:00.2]} 5. bxc3 {[%clk
0:03:01.7]} 5... Nf6 {[%clk 0:03:00.1]} 6. Bd3 {[%clk 0:03:01.5]} 6... Qa5
{[%clk 0:02:59.4]} 7. Nf3 {[%clk 0:03:01.3]} 7... Qxc3+ {[%clk 0:02:57.9]} 8.
Bd2 {[%clk 0:03:01.3]} 8... Qxc5 {[%clk 0:02:58.4]} 9. e5 {[%clk 0:03:01]} 9...
Ng4 {[%clk 0:02:55.6]} 10. Qe2 {[%clk 0:03:01.1]} 10... Nc6 {[%clk 0:02:54.2]}
11. O-O {[%clk 0:02:58]} 11... Ngxe5 {[%clk 0:02:53.2]} 12. Nxe5 {[%clk
0:02:53.5]} 12... Qxe5 {[%clk 0:02:54.1]} 13. Qf3 {[%clk 0:02:51.1]} 13... O-O
{[%clk 0:02:44.2]} 14. Rfe1 {[%clk 0:02:51.2]} 14... Qf6 {[%clk 0:02:43.3]} 15.
Qg3 {[%clk 0:02:51.1]} 15... d6 {[%clk 0:02:42.4]} 16. h4 {[%clk 0:02:47.9]}
16... Bf5 {[%clk 0:02:39.8]} 17. Bg5 {[%clk 0:02:47.3]} 17... Qg7 {[%clk
0:02:30]} 18. Rab1 {[%clk 0:02:44.4]} 18... Bxd3 {[%clk 0:02:25]} 19. Qxd3
{[%clk 0:02:43]} 19... Rab8 {[%clk 0:02:20.9]} 20. Bxe7 {[%clk 0:02:41]} 20...
Rfe8 {[%clk 0:02:18.2]} 21. Qxd6 {[%clk 0:02:35.5]} 21... Qd4 {[%clk 0:02:08]}
22. Qxd4 {[%clk 0:02:13.7]} 22... Nxd4 {[%clk 0:02:08.9]} 23. c3 {[%clk
0:02:14.3]} 23... Nf5 {[%clk 0:02:05.3]} 24. Bf6 {[%clk 0:02:14.2]} 24... b6
{[%clk 0:02:05.4]} 25. Rbd1 {[%clk 0:02:11]} 25... Kf8 {[%clk 0:01:46.6]} 26. g4
{[%clk 0:02:07.7]} 26... Rxe1+ {[%clk 0:01:40.4]} 27. Rxe1 {[%clk 0:02:07.3]}
27... Ng7 {[%clk 0:01:40.9]} 28. Rd1 {[%clk 0:02:05.9]} 28... Ne8 {[%clk
0:01:33]} 29. Be5 {[%clk 0:02:05.8]} 29... Rc8 {[%clk 0:01:33.3]} 30. Rd7 {[%clk
0:02:05.5]} 30... a5 {[%clk 0:01:25.3]} 31. Rb7 {[%clk 0:02:03.4]} 31... Rc6
{[%clk 0:01:24.6]} 32. Bd4 {[%clk 0:01:57.2]} 32... Nd6 {[%clk 0:01:20.7]} 33.
Rxb6 {[%clk 0:01:57.3]} 33... Rxb6 {[%clk 0:01:21.3]} 34. Bxb6 {[%clk
0:01:58.2]} 34... Nc4 {[%clk 0:01:22]} 35. Bc5+ {[%clk 0:01:57.2]} 35... Ke8
{[%clk 0:01:22.7]} 36. Kg2 {[%clk 0:01:57.1]} 36... Kd7 {[%clk 0:01:23]} 37. Kg3
{[%clk 0:01:55.9]} 37... Kc6 {[%clk 0:01:23.5]} 38. Bf8 {[%clk 0:01:53.2]} 38...
Kd5 {[%clk 0:01:00.6]} 39. Kf4 {[%clk 0:01:53.1]} 39... Ne5 {[%clk 0:00:47.4]}
40. Kg5 {[%clk 0:01:37.5]} 40... Nd3 {[%clk 0:00:40.9]} 41. f4 {[%clk 0:01:32]}
41... a4 {[%clk 0:00:30.5]} 42. a3 {[%clk 0:01:27.4]} 42... Ke4 {[%clk
0:00:21.1]} 43. Bd6 {[%clk 0:01:25.8]} 43... Nf2 {[%clk 0:00:19.9]} 44. h5
{[%clk 0:01:18]} 44... f6+ {[%clk 0:00:15.9]} 45. Kxf6 {[%clk 0:01:13.7]} 45...
Nxg4+ {[%clk 0:00:15.4]} 46. Kg5 {[%clk 0:01:11]} 46... gxh5 {[%clk 0:00:15.9]}
47. f5 {[%clk 0:01:10.5]} 47... Kd5 {[%clk 0:00:13]} 48. Bf4 {[%clk 0:01:05.7]}
48... Nf2 {[%clk 0:00:10.3]} 49. Kxh5 {[%clk 0:00:56.8]} 49... Ne4 {[%clk
0:00:10.4]} 50. Kh6 {[%clk 0:00:47.5]} 50... Nxc3 {[%clk 0:00:03.6]} 51. Kxh7
{[%clk 0:00:47.6]} 51... Ne4 {[%clk 0:00:03.7]} 52. Kg6 {[%clk 0:00:47.5]} 52...
Kd4 {[%clk 0:00:02.9]} 53. Kf7 {[%clk 0:00:46.2]} 53... Kd5 {[%clk 0:00:02.9]}
54. Ke7 {[%clk 0:00:46.7]} 54... Kc4 {[%clk 0:00:03.5]} 55. Ke6 {[%clk
0:00:46.7]} 55... Kb3 {[%clk 0:00:02.8]} 56. Bd6 {[%clk 0:00:41.4]} 56... Nxd6
{[%clk 0:00:02.6]} 57. Kxd6 {[%clk 0:00:41.4]} 57... Kxa3 {[%clk 0:00:03.5]} 58.
f6 {[%clk 0:00:42]} 58... Kb2 {[%clk 0:00:03.6]} 59. f7 {[%clk 0:00:42.9]} 59...
a3 {[%clk 0:00:04.5]} 60. f8=Q {[%clk 0:00:43.5]} 60... a2 {[%clk 0:00:05.4]}
61. Qf6+ {[%clk 0:00:44]} 61... Kb1 {[%clk 0:00:05.7]} 62. Qf5+ {[%clk
0:00:43.8]} 62... Kb2 {[%clk 0:00:06.2]} 63. Qe5+ {[%clk 0:00:43.8]} 63... Kb1
{[%clk 0:00:06.8]} 64. Qe4+ {[%clk 0:00:43.8]} 64... Kb2 {[%clk 0:00:07.3]} 65.
Qb4+ {[%clk 0:00:44.2]} 65... Kc2 {[%clk 0:00:07.4]} 66. Qa3 {[%clk 0:00:43.8]}
66... Kb1 {[%clk 0:00:07.8]} 67. Qb3+ {[%clk 0:00:44.4]} 67... Ka1 {[%clk
0:00:08.2]} 68. Qd1+ {[%clk 0:00:33.1]} 68... Kb2 {[%clk 0:00:07.5]} 69. Qd2+
{[%clk 0:00:30]} 69... Kb1 {[%clk 0:00:08]} 70. Qd3+ {[%clk 0:00:29.8]} 70...
Kb2 {[%clk 0:00:08.3]} 71. Kc5 {[%clk 0:00:29]} 71... a1=Q {[%clk 0:00:07.3]}
72. Kb4 {[%clk 0:00:29.6]} 72... Qe1+ {[%clk 0:00:07.2]} 73. Kc4 {[%clk
0:00:28.9]} 73... Qc1+ {[%clk 0:00:07.4]} 74. Kb4 {[%clk 0:00:29.4]} 74... Qe1+
{[%clk 0:00:07.5]} 75. Kc4 {[%clk 0:00:29.9]} 75... Qc1+ {[%clk 0:00:07.8]} 76.
Kb4 {[%clk 0:00:30.5]} 76... Qe1+ {[%clk 0:00:08.1]} 1/2-1/2

[Event "Late-Titled-Tuesday-Blitz-October-10-2023"]
[Site "Chess.com"]
[Date "2023.10.10"]
[Round "9"]
[White "YouShallNotPass001"]
[Black "LeninGuerra"]
[Result "0-1"]
[WhiteElo "2415"]
[BlackElo "2611"]
[TimeControl "180+1"]
[EndTime "15:40:32 PDT"]
[Termination "LeninGuerra won by checkmate"]

1. Nf3 {[%clk 0:03:00.9]} 1... c5 {[%clk 0:02:59.6]} 2. e3 {[%clk 0:03:01.8]}
2... e6 {[%clk 0:03:00]} 3. Be2 {[%clk 0:03:02.1]} 3... Nf6 {[%clk 0:03:00.9]}
4. O-O {[%clk 0:03:02.7]} 4... d6 {[%clk 0:03:01.8]} 5. d4 {[%clk 0:03:03.3]}
5... Be7 {[%clk 0:03:02.7]} 6. b3 {[%clk 0:03:02.9]} 6... O-O {[%clk 0:03:02.5]}
7. Bb2 {[%clk 0:03:03.1]} 7... cxd4 {[%clk 0:03:03.1]} 8. exd4 {[%clk 0:03:03]}
8... Nc6 {[%clk 0:03:04]} 9. Nbd2 {[%clk 0:03:03.3]} 9... b6 {[%clk 0:03:04.3]}
10. Re1 {[%clk 0:03:03.9]} 10... Bb7 {[%clk 0:03:04.8]} 11. c4 {[%clk
0:03:03.8]} 11... Re8 {[%clk 0:03:05.2]} 12. Bf1 {[%clk 0:03:04]} 12... Rc8
{[%clk 0:03:01.2]} 13. a3 {[%clk 0:03:01.8]} 13... Nb8 {[%clk 0:03:00.8]} 14. b4
{[%clk 0:03:01.8]} 14... Nbd7 {[%clk 0:03:01.1]} 15. Rc1 {[%clk 0:03:01.5]}
15... Qc7 {[%clk 0:03:01.3]} 16. Qb3 {[%clk 0:03:00]} 16... Qb8 {[%clk
0:03:01.2]} 17. a4 {[%clk 0:02:58.1]} 17... Nf8 {[%clk 0:03:00.6]} 18. Ra1
{[%clk 0:02:57.4]} 18... Ng6 {[%clk 0:02:54]} 19. a5 {[%clk 0:02:56.8]} 19...
Nf4 {[%clk 0:02:52.5]} 20. axb6 {[%clk 0:02:46.2]} 20... axb6 {[%clk 0:02:53.4]}
21. Qe3 {[%clk 0:02:43.3]} 21... Ng6 {[%clk 0:02:52.8]} 22. d5 {[%clk
0:02:34.2]} 22... exd5 {[%clk 0:02:46.4]} 23. Qxb6 {[%clk 0:02:31.6]} 23... dxc4
{[%clk 0:02:42.3]} 24. Bxc4 {[%clk 0:02:30.2]} 24... Bxf3 {[%clk 0:02:30.1]} 25.
Qxb8 {[%clk 0:02:26.1]} 25... Rxb8 {[%clk 0:02:31]} 26. gxf3 {[%clk 0:01:49.3]}
26... Rxb4 {[%clk 0:02:30.7]} 27. Bxf6 {[%clk 0:01:45.5]} 27... gxf6 {[%clk
0:02:31.6]} 28. Ra7 {[%clk 0:01:44.5]} 28... Kf8 {[%clk 0:02:19.5]} 29. h4
{[%clk 0:01:24.5]} 29... Ne5 {[%clk 0:02:18.6]} 30. Ba2 {[%clk 0:01:19.8]} 30...
Rd4 {[%clk 0:01:58.8]} 31. f4 {[%clk 0:01:16.5]} 31... Rxd2 {[%clk 0:01:51.4]}
32. fxe5 {[%clk 0:01:15.7]} 32... fxe5 {[%clk 0:01:47.5]} 33. Re3 {[%clk
0:01:08.1]} 33... Rc8 {[%clk 0:01:27.2]} 34. Rf3 {[%clk 0:01:05.2]} 34... d5
{[%clk 0:01:27.4]} 35. Rf5 {[%clk 0:01:01.3]} 35... Rc1+ {[%clk 0:01:22.5]} 36.
Kg2 {[%clk 0:01:00.8]} 36... Rcc2 {[%clk 0:01:16.7]} 37. Bb3 {[%clk 0:00:50.2]}
37... Rb2 {[%clk 0:00:56.4]} 38. Ra8+ {[%clk 0:00:48.1]} 38... Kg7 {[%clk
0:00:55.5]} 39. Ra7 {[%clk 0:00:46.8]} 39... Bf6 {[%clk 0:00:38.9]} 40. Ba4
{[%clk 0:00:31]} 40... e4 {[%clk 0:00:28.9]} 41. Ra6 {[%clk 0:00:19.8]} 41...
Bd4 {[%clk 0:00:26.2]} 42. Rg5+ {[%clk 0:00:17.8]} 42... Kf8 {[%clk 0:00:25.8]}
43. Ra8+ {[%clk 0:00:17.4]} 43... Ke7 {[%clk 0:00:26.3]} 44. Rxd5 {[%clk
0:00:16.5]} 44... Rxf2+ {[%clk 0:00:24.1]} 45. Kg3 {[%clk 0:00:17.1]} 45... Rf3+
{[%clk 0:00:20.3]} 46. Kg4 {[%clk 0:00:16.7]} 46... Rg2+ {[%clk 0:00:20.9]} 47.
Kh5 {[%clk 0:00:16.7]} 47... Be3 {[%clk 0:00:14.8]} 48. Re8+ {[%clk 0:00:07.7]}
48... Kf6 {[%clk 0:00:14.2]} 49. Rd6+ {[%clk 0:00:08.1]} 49... Kg7 {[%clk
0:00:14.4]} 50. Rd5 {[%clk 0:00:05.8]} 50... Rf6 {[%clk 0:00:12.8]} 51. Rg5+
{[%clk 0:00:02.7]} 51... Bxg5 {[%clk 0:00:13]} 52. hxg5 {[%clk 0:00:03.6]} 52...
Rf1 {[%clk 0:00:11.7]} 53. Rxe4 {[%clk 0:00:03.3]} 53... Rh1+ {[%clk 0:00:11.9]}
54. Rh4 {[%clk 0:00:04.2]} 54... Rxh4+ {[%clk 0:00:12]} 55. Kxh4 {[%clk
0:00:05.1]} 55... h6 {[%clk 0:00:12.4]} 56. gxh6+ {[%clk 0:00:05]} 56... Kxh6
{[%clk 0:00:13.3]} 57. Kh3 {[%clk 0:00:05.8]} 57... Rb2 {[%clk 0:00:13.1]} 58.
Be8 {[%clk 0:00:05.7]} 58... f5 {[%clk 0:00:13.1]} 59. Kg3 {[%clk 0:00:06.6]}
59... Kg5 {[%clk 0:00:13.3]} 60. Kf3 {[%clk 0:00:07]} 60... Rb3+ {[%clk
0:00:13.4]} 61. Kf2 {[%clk 0:00:07.1]} 61... Ra3 {[%clk 0:00:14]} 62. Bf7 {[%clk
0:00:07.4]} 62... Kf4 {[%clk 0:00:14.5]} 63. Kf1 {[%clk 0:00:07.6]} 63... Re3
{[%clk 0:00:14.7]} 64. Kf2 {[%clk 0:00:07.8]} 64... Rf3+ {[%clk 0:00:15.2]} 65.
Ke2 {[%clk 0:00:08.1]} 65... Rc3 {[%clk 0:00:15.7]} 66. Kf2 {[%clk 0:00:08.7]}
66... Rc2+ {[%clk 0:00:15.8]} 67. Ke1 {[%clk 0:00:08.9]} 67... Ke3 {[%clk
0:00:16.3]} 68. Kd1 {[%clk 0:00:08]} 68... Rc7 {[%clk 0:00:16.9]} 69. Bg6 {[%clk
0:00:08.2]} 69... f4 {[%clk 0:00:17.8]} 70. Ke1 {[%clk 0:00:08.4]} 70... f3
{[%clk 0:00:18.6]} 71. Kf1 {[%clk 0:00:08.6]} 71... Rc1# {[%clk 0:00:17.1]} 0-1